bitfinex/quotes_BTCUSD_20250219
["timestamp","ask_amount","ask_price","bid_price","bid_amount"]
[1739936627972,4.497562,95981.0,95980.0,0.001]
[1739936628190,3.619407,95981.0,95977.0,0.000851]
[1739936628418,1.799537,95980.0,95977.0,0.000851]
[1739936628630,0.01634196,95982.0,95978.0,0.0075851]
[1739936629179,2.59855,95981.0,95978.0,0.0075851]
[1739936629298,2.59855,95981.0,95977.0,0.000851]
[1739936629299,2.306747,95980.0,95977.0,0.000851]
[1739936629504,3.662804,95981.0,95977.0,0.000851]
[1739936629712,3.973822,95981.0,95977.0,0.001851]
[1739936629906,3.831361,95981.0,95977.0,0.001851]
[1739936630117,3.831361,95981.0,95977.0,0.000851]
[1739936630118,4.497562,95981.0,95977.0,0.000851]
[1739936630318,4.497562,95981.0,95978.0,0.001]
[1739936630759,4.497562,95981.0,95977.0,0.000851]
[1739936630975,4.497562,95981.0,95977.0,0.001851]
[1739936631285,4.497562,95981.0,95977.0,0.000851]
[1739936631643,4.497562,95981.0,95978.0,0.001]
[1739936632891,4.497562,95981.0,95977.0,0.000851]
[1739936633068,4.49246365,95981.0,95977.0,0.000851]
[1739936633272,4.49246365,95981.0,95977.0,0.001851]
[1739936633273,0.023,95980.0,95977.0,0.001851]
[1739936633488,0.023,95980.0,95977.0,0.000851]
[1739936633489,4.515464,95980.0,95977.0,0.000851]
[1739936633847,0.023,95978.0,95977.0,0.000851]
[1739936634024,4.515464,95978.0,95977.0,0.000851]
[1739936636218,4.516464,95978.0,95977.0,0.000851]
[1739936636443,4.53280837,95978.0,95977.0,0.000851]
[1739936637367,4.53280837,95978.0,95957.0,0.30910628]
[1739936637504,0.023,95976.0,95957.0,4.375e-05]
[1739936637708,0.023,95974.0,95957.0,4.375e-05]
[1739936637915,0.023,95972.0,95957.0,4.375e-05]
[1739936638193,0.023,95970.0,95957.0,4.375e-05]
[1739936638516,0.023,95968.0,95957.0,0.00804319]
[1739936638727,0.023,95966.0,95957.0,0.00804319]
[1739936638914,4.492464,95965.0,95957.0,0.00804319]
[1739936639078,4.492464,95965.0,95957.0,4.375e-05]
[1739936639260,0.023,95966.0,95957.0,4.375e-05]
[1739936639261,4.492464,95964.0,95957.0,4.375e-05]
[1739936639461,4.324018,95963.0,95957.0,4.375e-05]
[1739936639646,3.66087,95962.0,95957.0,4.375e-05]
[1739936639847,3.605545,95961.0,95957.0,4.375e-05]
[1739936640048,3.55284,95960.0,95957.0,4.375e-05]
[1739936640251,3.089981,95959.0,95957.0,0.00104375]
[1739936640607,2.559033,95958.0,95957.0,4.375e-05]
[1739936640820,0.842303,95958.0,95957.0,0.01004319]
[1739936640947,0.651363,95958.0,95957.0,0.01004319]
[1739936641159,0.651363,95958.0,95957.0,4.375e-05]
[1739936642453,0.651363,95958.0,95957.0,0.00204375]
[1739936642860,0.651363,95958.0,95957.0,4.375e-05]
[1739936643021,0.651363,95958.0,95957.0,0.00304375]
[1739936645542,0.651363,95958.0,95957.0,4.375e-05]
[1739936645959,0.651363,95958.0,95957.0,0.00304375]
[1739936646508,0.66770803,95958.0,95957.0,0.00304375]
[1739936646714,0.66770803,95958.0,95957.0,4.375e-05]
[1739936646917,0.66770803,95958.0,95957.0,0.00304375]
[1739936648052,0.44318555,95958.0,95957.0,0.00389475]
[1739936648248,0.29833703,95958.0,95957.0,0.01219419]
[1739936648859,0.29833703,95958.0,95957.0,0.00919419]
[1739936649063,0.29833703,95958.0,95957.0,0.00089475]
[1739936649201,0.29833703,95958.0,95957.0,0.00389475]
[1739936649397,0.29833703,95958.0,95957.0,0.00089475]
[1739936649604,0.29833703,95958.0,95957.0,0.00389475]
[1739936650032,0.23314403,95958.0,95957.0,0.00089475]
[1739936650232,0.23314403,95958.0,95957.0,0.01197929]
[1739936650447,0.16994403,95958.0,95957.0,0.01197929]
[1739936650673,0.16994403,95958.0,95957.0,0.00897929]
[1739936651571,0.01634503,95958.0,95957.0,0.00897929]
[1739936651743,0.01634503,95958.0,95957.0,0.0100213]
[1739936651945,0.023,95973.0,95957.0,0.0120213]
[1739936652249,4.267942,95972.0,95958.0,0.0102392]
[1739936652628,4.267942,95972.0,95958.0,0.00919719]
[1739936653044,4.267942,95981.0,95957.0,0.00193676]
[1739936655235,4.268942,95981.0,95957.0,0.00193676]
[1739936655441,4.267942,95980.0,95957.0,0.00193676]
[1739936656748,4.267942,95981.0,95957.0,0.00089475]
[1739936657047,0.001,95980.0,95959.0,0.0816]
[1739936657253,0.057,95979.0,95959.0,0.0816]
[1739936657477,3.625796,95978.0,95959.0,0.0816]
[1739936657892,3.50542,95979.0,95960.0,0.13258665]
[1739936658057,1.455102,95978.0,95961.0,0.0816]
[1739936658257,2.351242,95979.0,95963.0,0.0816]
[1739936658435,1.571685,95979.0,95964.0,0.00104192]
[1739936658680,2.409132,95981.0,95964.0,0.00104192]
[1739936658968,2.244129,95981.0,95963.0,0.07296192]
[1739936659247,1.697182,95980.0,95964.0,0.02464215]
[1739936659421,0.001,95979.0,95964.0,0.02464215]
[1739936659617,1.543156,95979.0,95964.0,0.02464215]
[1739936659850,2.451209,95981.0,95964.0,0.02464215]
[1739936660030,2.452209,95981.0,95964.0,0.02464215]
[1739936660228,0.653915,95980.0,95972.0,0.0462]
[1739936660444,0.001,95981.0,95972.0,0.04724186]
[1739936660445,0.62874,95979.0,95972.0,0.04724186]
[1739936660626,0.0004256,95979.0,95972.0,0.0462]
[1739936660826,0.657641,95978.0,95972.0,0.04724186]
[1739936661033,0.773044,95977.0,95972.0,0.0462]
[1739936661238,0.589901,95976.0,95972.0,0.0462]
[1739936661476,1.157476,95978.0,95972.0,0.0462]
[1739936661617,0.974063,95978.0,95972.0,0.0462]
[1739936661817,1.158375,95978.0,95972.0,0.0462]
[1739936662024,0.01634286,95977.0,95973.0,0.083]
[1739936662220,0.99706586,95977.0,95973.0,0.083]
[1739936662429,0.612841,95976.0,95973.0,0.083]
[1739936662783,0.001,95978.0,95973.0,0.10429446]
[1739936662959,0.387494,95978.0,95974.0,0.0010418]
[1739936663192,0.266005,95977.0,95973.0,0.10429446]
[1739936663774,0.001,95978.0,95973.0,0.10429446]
[1739936663979,0.479756,95977.0,95974.0,0.0010418]
[1739936664179,0.479756,95977.0,95973.0,0.10429446]
[1739936664330,0.480756,95977.0,95973.0,0.10429446]
[1739936664675,0.129294,95976.0,95973.0,0.083]
[1739936665035,0.852429,95978.0,95973.0,0.083]
[1739936665237,0.538106,95977.0,95973.0,0.083]
[1739936665474,0.39981,95977.0,95973.0,0.083]
[1739936665687,0.41615241,95977.0,95973.0,0.083]
[1739936665889,0.238407,95976.0,95973.0,0.083]
[1739936666252,0.222051,95976.0,95973.0,0.083]
[1739936666485,0.170251,95976.0,95973.0,0.083]
[1739936666652,0.33075,95976.0,95973.0,0.083]
[1739936667671,0.306794,95976.0,95973.0,0.083]
[1739936667873,0.281607,95976.0,95973.0,0.083]
[1739936668419,0.281607,95976.0,95973.0,0.13520509]
[1739936668620,0.201391,95975.0,95973.0,0.13520509]
[1739936668777,0.630644,95976.0,95973.0,0.13520509]
[1739936668978,0.240626,95975.0,95973.0,0.13520509]
[1739936669496,0.657196,95976.0,95973.0,0.13520509]
[1739936669700,0.293117,95975.0,95973.0,0.13520509]
[1739936669867,0.239573,95974.0,95973.0,0.13520509]
[1739936670062,0.381836,95975.0,95973.0,0.13520509]
[1739936670271,0.281091,95975.0,95973.0,0.083]
[1739936670535,2.263264,95975.0,95973.0,0.083]
[1739936670736,1.815849,95974.0,95973.0,0.083]
[1739936670937,1.784507,95974.0,95973.0,0.083]
[1739936671267,1.773006,95974.0,95972.0,0.0462]
[1739936671475,1.773006,95974.0,95966.0,0.39060628]
[1739936671679,2.360674,95973.0,95966.0,0.30910628]
[1739936671903,2.701326,95974.0,95966.0,0.30910628]
[1739936672117,3.141205,95976.0,95966.0,0.30910628]
[1739936672327,4.267942,95976.0,95966.0,0.30910628]
[1739936672736,0.00104197,95975.0,95966.0,0.30910628]
[1739936672940,4.267942,95974.0,95966.0,0.30910628]
[1739936673372,4.267942,95977.0,95966.0,0.30910628]
[1739936673557,0.00104197,95976.0,95966.0,0.30910628]
[1739936673705,4.267942,95975.0,95966.0,0.30910628]
[1739936674227,0.083,95978.0,95966.0,0.30910628]
[1739936674228,0.001,95976.0,95966.0,0.30910628]
[1739936674426,0.00104197,95974.0,95966.0,0.30910628]
[1739936674628,4.26898397,95973.0,95966.0,0.30910628]
[1739936674835,4.267942,95972.0,95966.0,0.30910628]
[1739936675173,0.00104197,95971.0,95966.0,0.30910628]
[1739936675306,4.267942,95970.0,95958.0,0.0008512]
[1739936675509,0.00104197,95969.0,95958.0,0.0008512]
[1739936675719,4.267942,95968.0,95958.0,0.0008512]
[1739936675896,0.01634454,95967.0,95958.0,0.0008512]
[1739936676089,3.530338,95966.0,95958.0,0.01374086]
[1739936676295,4.008635,95965.0,95958.0,0.01374086]
[1739936676498,3.8720297,95966.0,95958.0,0.01374086]
[1739936676697,3.524368,95966.0,95958.0,0.01374086]
[1739936676899,3.877332,95965.0,95959.0,0.01417862]
[1739936677204,2.663587,95964.0,95959.0,0.01417862]
[1739936677403,2.30871,95963.0,95959.0,0.01417862]
[1739936677647,2.117095,95962.0,95959.0,0.01417862]
[1739936677848,1.855185,95961.0,95959.0,0.01417862]
[1739936678161,0.01634454,95967.0,95960.0,0.00941752]
[1739936678363,3.826547,95966.0,95960.0,0.00941752]
[1739936680365,2.917625,95965.0,95960.0,0.00941752]
[1739936680511,0.01634454,95967.0,95960.0,0.00941752]
[1739936680711,3.34693,95966.0,95960.0,0.00941752]
[1739936680917,2.647549,95966.0,95960.0,0.00941752]
[1739936681114,0.200483,95965.0,95961.0,0.08374464]
[1739936681320,0.614747,95966.0,95962.0,0.0775]
[1739936681529,0.710378,95966.0,95962.0,0.0775]
[1739936681978,0.710378,95966.0,95963.0,0.04729475]
[1739936682187,0.48301272,95965.0,95963.0,0.04729475]
[1739936682396,0.330464,95964.0,95963.0,0.04729475]
[1739936682872,0.290409,95964.0,95962.0,0.0775]
[1739936683017,0.14475,95963.0,95962.0,0.0775]
[1739936683214,0.329376,95964.0,95962.0,0.0775]
[1739936683914,0.329376,95964.0,95962.0,0.0795]
[1739936684119,0.142614,95964.0,95962.0,0.0795]
[1739936684368,0.337866,95964.0,95963.0,0.04749475]
[1739936685011,0.0418103,95964.0,95963.0,0.04749475]
[1739936685214,0.683968,95964.0,95963.0,0.04749475]
[1739936685393,0.508462,95964.0,95963.0,0.04749475]
[1739936686681,0.508462,95964.0,95963.0,0.04949475]
[1739936688343,0.52480665,95964.0,95963.0,0.04949475]
[1739936688467,0.52480665,95964.0,95963.0,0.04749475]
[1739936688703,0.52480665,95964.0,95962.0,0.0783512]
[1739936689002,0.01634465,95964.0,95962.0,0.0783512]
[1739936690038,0.01634465,95964.0,95963.0,0.002]
[1739936690206,1.53216865,95964.0,95962.0,0.0783512]
[1739936690406,0.01634465,95964.0,95962.0,0.0783512]
[1739936690790,0.01634465,95964.0,95962.0,0.12873107]
[1739936690988,0.01634465,95964.0,95962.0,0.12573107]
[1739936691235,1.066649,95963.0,95962.0,0.0783512]
[1739936691451,0.945406,95963.0,95962.0,0.0783512]
[1739936692051,0.905099,95963.0,95962.0,0.0783512]
[1739936692975,0.905099,95963.0,95962.0,0.0813512]
[1739936693219,0.659774,95963.0,95962.0,0.0813512]
[1739936693427,0.03235372,95965.0,95962.0,0.12603107]
[1739936693631,0.03235372,95965.0,95962.0,0.13007303]
[1739936693962,0.03235372,95965.0,95963.0,0.00104196]
[1739936696551,0.04869699,95965.0,95963.0,0.00304196]
[1739936697209,0.01634327,95965.0,95963.0,0.00304196]
[1739936697399,0.03235372,95964.0,95963.0,0.00304196]
[1739936698984,0.03235372,95964.0,95963.0,0.31014824]
[1739936699226,0.03235372,95964.0,95963.0,0.30910628]
[1739936699433,0.03235372,95964.0,95963.0,0.31210628]
[1739936700430,0.03235372,95964.0,95963.0,0.003]
[1739936700656,0.03235372,95964.0,95963.0,0.02537113]
[1739936700860,0.03235372,95964.0,95963.0,0.02622233]
[1739936701055,0.03235372,95964.0,95963.0,0.02518044]
[1739936702145,0.03235372,95964.0,95963.0,0.02622233]
[1739936703562,0.03235372,95964.0,95963.0,0.02518044]
[1739936703736,0.03235372,95964.0,95963.0,0.10672225]
[1739936705539,0.04869661,95964.0,95963.0,0.10672225]
[1739936709024,0.04869661,95964.0,95963.0,0.15442225]
[1739936709219,0.04869661,95964.0,95963.0,0.15338044]
[1739936709485,0.04869661,95964.0,95963.0,0.15442218]
[1739936710114,0.04869661,95964.0,95963.0,0.15142218]
[1739936710901,0.04869661,95964.0,95963.0,0.15842218]
[1739936711111,0.023,96013.0,95963.0,0.03022218]
[1739936711315,3.632616,96012.0,95974.0,0.0825]
[1739936711512,3.632616,96012.0,95975.0,0.08354172]
[1739936711720,0.01633969,96001.0,95975.0,0.08354172]
[1739936711919,2.108571,96000.0,95975.0,0.08354172]
[1739936712121,1.327246,96000.0,95975.0,0.08354172]
[1739936712381,1.319343,96000.0,95975.0,0.08354172]
[1739936712558,1.771564,96000.0,95975.0,0.08354172]
[1739936712875,1.431954,96000.0,95977.0,0.0825]
[1739936713079,0.01633969,96001.0,95978.0,0.00104172]
[1739936713282,1.344246,96000.0,95978.0,0.00104172]
[1739936714670,3.902274,96010.0,95978.0,0.00104172]
[1739936714871,0.00104197,96009.0,95979.0,0.0813]
[1739936715074,3.902274,96008.0,95980.0,0.01592072]
[1739936715253,0.00104197,96007.0,95980.0,0.01592072]
[1739936715489,3.902274,96006.0,95980.0,0.01592072]
[1739936715815,0.00104197,96005.0,95980.0,0.01592072]
[1739936716019,3.902274,96004.0,95980.0,0.01592072]
[1739936716322,0.00104197,96003.0,95981.0,0.01184694]
[1739936716481,3.902274,96002.0,95981.0,0.01184694]
[1739936716682,0.0163396,95999.0,95982.0,0.00104169]
[1739936716864,2.097944,95998.0,95982.0,0.00104169]
[1739936717060,1.511503,95998.0,95983.0,0.1261]
[1739936717402,1.117673,95997.0,95984.0,0.01494053]
[1739936717565,1.821625,95998.0,95984.0,0.01494053]
[1739936717770,1.522388,95998.0,95984.0,0.01494053]
[1739936717971,1.528698,95998.0,95984.0,0.01494053]
[1739936722666,3.902274,96010.0,95984.0,0.01494053]
[1739936722871,0.00104197,96009.0,95985.0,0.01410405]
[1739936723142,3.902274,96008.0,95986.0,0.00104167]
[1739936723342,0.00104197,96007.0,95986.0,0.00104167]
[1739936723751,3.902274,96006.0,95986.0,0.00104167]
[1739936723883,0.00104197,96005.0,95986.0,0.00104167]
[1739936724102,3.90331597,96008.0,95987.0,0.01412457]
[1739936724298,3.90331597,96007.0,95988.0,0.00104167]
[1739936724497,3.088137,96006.0,95988.0,0.00104167]
[1739936724704,3.077626,96006.0,95988.0,0.00104167]
[1739936724928,2.916122,96007.0,95988.0,0.00104167]
[1739936725124,2.916122,96007.0,95989.0,0.01412662]
[1739936725338,2.916122,96007.0,95990.0,0.0751]
[1739936725690,2.636849,96007.0,95990.0,0.0751]
[1739936725906,2.36251,96006.0,95990.0,0.0751]
[1739936726105,2.858065,96007.0,95990.0,0.0751]
[1739936726311,2.239588,96007.0,95991.0,0.00104167]
[1739936726521,1.9603,96007.0,95992.0,0.00761417]
[1739936726728,1.628423,96007.0,95993.0,0.04894159]
[1739936726985,1.335851,96007.0,95993.0,0.04894159]
[1739936727193,0.01633852,96004.0,95993.0,0.04894159]
[1739936727425,0.347674,96003.0,95994.0,0.09596558]
[1739936727543,0.347674,96003.0,95995.0,0.00104159]
[1739936727880,0.120558,96003.0,95995.0,0.00104159]
[1739936728548,0.300278,96002.0,95995.0,0.00104159]
[1739936728744,0.331609,96003.0,95995.0,0.01629372]
[1739936729078,0.686618,96003.0,95995.0,0.01629372]
[1739936729415,0.39707538,96003.0,95995.0,0.01629372]
[1739936729614,0.01633852,96004.0,95995.0,0.01729372]
[1739936729827,0.66048,96003.0,95996.0,0.01556079]
[1739936730034,0.253349,96002.0,95996.0,0.01556079]
[1739936730232,0.385421,96003.0,95996.0,0.01556079]
[1739936730529,0.253404,96002.0,95996.0,0.01556079]
[1739936730730,0.287595,96003.0,95996.0,0.01556079]
[1739936730960,0.287595,96003.0,95997.0,0.01559166]
[1739936732068,0.01633852,96004.0,95998.0,0.00104159]
[1739936732273,0.01633852,96004.0,96000.0,0.0455]
[1739936732447,0.01633852,96004.0,96001.0,0.08404138]
[1739936732649,0.01633852,96004.0,96003.0,0.083]
[1739936732835,0.01633852,96004.0,96003.0,0.0976133]
[1739936733234,0.01633852,96004.0,96003.0,0.09865468]
[1739936733569,0.01633852,96004.0,96003.0,0.0976133]
[1739936734825,0.01633852,96004.0,96003.0,0.087]
[1739936735660,0.01633852,96004.0,96003.0,0.083]
[1739936737153,0.01633852,96004.0,96003.0,0.087]
[1739936737353,0.01633852,96004.0,96003.0,0.083]
[1739936737598,0.01633852,96004.0,96003.0,0.087]
[1739936737800,0.01633852,96004.0,96003.0,0.10180917]
[1739936737972,0.01633852,96004.0,96003.0,0.09865997]
[1739936738178,0.01676392,96004.0,96003.0,0.10265997]
[1739936739965,0.01676392,96004.0,96003.0,0.08889227]
[1739936740933,0.01676392,96004.0,96003.0,0.08489227]
[1739936741347,0.01676392,96004.0,96003.0,0.08989227]
[1739936742019,0.0004254,96004.0,96003.0,0.0888508]
[1739936742179,0.0004254,96004.0,96003.0,0.08989226]
[1739936743445,0.0004254,96004.0,96003.0,0.09999065]
[1739936743661,0.0004254,96004.0,96003.0,0.10499065]
[1739936744107,0.0004254,96004.0,96003.0,0.09999065]
[1739936744311,0.0004254,96004.0,96003.0,0.10499065]
[1739936746889,0.0004254,96004.0,96003.0,0.08989226]
[1739936748110,0.0004254,96004.0,96003.0,0.0838508]
[1739936748314,0.0004254,96004.0,96003.0,0.0878508]
[1739936748512,0.0004254,96004.0,96003.0,0.0048508]
[1739936749401,2.6813544,96004.0,96003.0,0.0048508]
[1739936749773,2.6813544,96004.0,96003.0,0.0008508]
[1739936750089,2.6813544,96004.0,96003.0,0.0048508]
[1739936750291,2.7612544,96004.0,96003.0,0.0008508]
[1739936750791,2.7612544,96004.0,96003.0,0.0018508]
[1739936751102,2.7612544,96004.0,96003.0,0.0008508]
[1739936751290,2.7612544,96004.0,96003.0,0.0018508]
[1739936751496,2.7612544,96004.0,96003.0,0.0008508]
[1739936752305,2.85639492,96004.0,96003.0,0.0008508]
[1739936752508,2.8325544,96004.0,96003.0,0.0008508]
[1739936754595,2.8325544,96004.0,96003.0,0.0018508]
[1739936755586,0.1516254,96004.0,96003.0,0.0018508]
[1739936755783,0.15266737,96004.0,96003.0,0.0008508]
[1739936756231,0.15966737,96004.0,96003.0,0.0018508]
[1739936756433,3.76539937,96004.0,96003.0,0.0008508]
[1739936756630,3.7643574,96004.0,96003.0,0.0008508]
[1739936756808,3.7713574,96004.0,96003.0,0.0008508]
[1739936757413,3.7486824,96004.0,96003.0,0.0008508]
[1739936758738,3.7157334,96004.0,96003.0,0.0008508]
[1739936758937,2.9891404,96004.0,96003.0,0.0008508]
[1739936759930,2.9821404,96004.0,96003.0,0.0008508]
[1739936760333,2.9881404,96004.0,96003.0,0.0008508]
[1739936760540,2.9821404,96004.0,96003.0,0.0008508]
[1739936760943,2.9871404,96004.0,96003.0,0.0008508]
[1739936761749,2.8228274,96004.0,96003.0,0.0008508]
[1739936761982,2.7793364,96004.0,96003.0,0.0008508]
[1739936762184,2.60527815,96004.0,96003.0,0.0008508]
[1739936762520,2.222663,96007.0,96003.0,0.0008508]
[1739936762732,3.59634197,96006.0,96003.0,0.0008508]
[1739936762951,3.5953,96005.0,96003.0,0.0008508]
[1739936763128,3.59634197,96004.0,96003.0,0.0008508]
[1739936763333,3.5953,96004.0,96003.0,0.0008508]
[1739936763543,3.61914052,96004.0,96003.0,0.0008508]
[1739936764221,3.5953,96004.0,96003.0,0.0008508]
[1739936764391,3.6183,96004.0,96003.0,0.0008508]
[1739936765243,2.432363,96004.0,96003.0,0.0008508]
[1739936766037,2.433363,96004.0,96003.0,0.0008508]
[1739936766874,2.432363,96004.0,96003.0,0.0008508]
[1739936767048,2.433363,96004.0,96003.0,0.0008508]
[1739936767448,2.432363,96004.0,96003.0,0.0008508]
[1739936767671,2.433363,96004.0,96003.0,0.0008508]
[1739936769553,2.432363,96004.0,96003.0,0.0008508]
[1739936769755,2.437363,96004.0,96003.0,0.0008508]
[1739936770207,2.432363,96004.0,96003.0,0.0008508]
[1739936770511,2.436363,96004.0,96003.0,0.0008508]
[1739936770921,2.432363,96004.0,96003.0,0.0008508]
[1739936771078,4.378e-05,96008.0,96003.0,0.0008508]
[1739936771294,3.5953,96007.0,96003.0,0.0008508]
[1739936771560,0.00104197,96006.0,96003.0,0.0008508]
[1739936771694,3.589471,96005.0,96003.0,0.0008508]
[1739936771922,3.558091,96005.0,96003.0,0.0008508]
[1739936772122,0.00104197,96004.0,96003.0,0.0008508]
[1739936772471,3.59347097,96004.0,96003.0,0.0008508]
[1739936772598,3.5953,96004.0,96003.0,0.0008508]
[1739936772803,3.570725,96004.0,96003.0,0.0008508]
[1739936773449,3.572725,96004.0,96003.0,0.0008508]
[1739936782807,2.557988,96004.0,96003.0,0.0008508]
[1739936783422,0.002,96004.0,96003.0,0.0008508]
[1739936783630,3.59834197,96004.0,96003.0,0.0008508]
[1739936783826,3.5973,96004.0,96003.0,0.0008508]
[1739936785424,3.5977255,96004.0,96003.0,0.0008508]
[1739936787441,3.5332995,96004.0,96003.0,0.0008508]
[1739936787830,3.2150445,96004.0,96003.0,0.0008508]
[1739936788380,3.1767795,96004.0,96003.0,0.0008508]
[1739936789286,3.1767795,96004.0,96003.0,0.0800508]
[1739936789692,2.6738795,96004.0,96003.0,0.0800508]
[1739936790652,2.1121885,96004.0,96003.0,0.0800508]
[1739936790857,2.1121885,96004.0,96003.0,0.1273508]
[1739936791656,2.1101885,96004.0,96003.0,0.1273508]
[1739936792061,2.1121885,96004.0,96003.0,0.1273508]
[1739936793399,2.1024685,96004.0,96003.0,0.1273508]
[1739936794541,2.1024685,96004.0,96003.0,0.14008588]
[1739936796938,2.1024685,96004.0,96003.0,0.1273508]
[1739936797503,3.044928,96004.0,96003.0,0.1273508]
[1739936797723,3.0453535,96004.0,96003.0,0.1273508]
[1739936798102,2.2141945,96004.0,96003.0,0.1273508]
[1739936798313,0.4315595,96004.0,96003.0,0.1273508]
[1739936798521,0.1310665,96004.0,96003.0,0.14008588]
[1739936800669,0.1310665,96004.0,96003.0,0.1273508]
[1739936801952,0.0024255,96004.0,96003.0,0.1273508]
[1739936804314,0.0004255,96004.0,96003.0,0.1273508]
[1739936804520,0.0004255,96004.0,96003.0,0.1303508]
[1739936809649,0.10657167,96043.0,96004.0,0.0804]
[1739936809829,3.29089,96042.0,96006.0,0.0804]
[1739936810024,2.998632,96042.0,96006.0,0.0804]
[1739936811417,3.004632,96042.0,96006.0,0.0814]
[1739936811742,3.24507,96041.0,96006.0,0.0814]
[1739936812000,3.24507,96041.0,96008.0,0.0804]
[1739936812430,3.24507,96041.0,96009.0,0.0469]
[1739936812641,3.273261,96042.0,96010.0,0.0804]
[1739936812840,3.586006,96040.0,96010.0,0.0804]
[1739936813045,3.586006,96042.0,96010.0,0.0804]
[1739936813245,3.586006,96042.0,96011.0,0.01273]
[1739936813506,3.586006,96042.0,96012.0,0.0804]
[1739936814294,3.220095,96042.0,96012.0,0.0804]
[1739936814538,0.006,96041.0,96012.0,0.0804]
[1739936814738,3.643686,96040.0,96012.0,0.0804]
[1739936814939,3.586006,96039.0,96013.0,0.014003]
[1739936815060,3.586006,96040.0,96013.0,0.014003]
[1739936816032,3.586006,96042.0,96013.0,0.014003]
[1739936816237,0.006,96039.0,96014.0,0.0814]
[1739936816393,3.643726,96038.0,96014.0,0.0814]
[1739936816610,3.586006,96037.0,96014.0,0.0814]
[1739936816936,3.586006,96038.0,96014.0,0.0814]
[1739936817181,3.173664,96038.0,96014.0,0.0814]
[1739936817375,3.371753,96038.0,96014.0,0.0814]
[1739936817679,3.170762,96038.0,96015.0,0.01293]
[1739936817858,3.295875,96038.0,96015.0,0.01293]
[1739936818052,3.444703,96042.0,96015.0,0.01293]
[1739936818255,0.006,96040.0,96015.0,0.01293]
[1739936818461,3.586006,96039.0,96016.0,0.014223]
[1739936818662,0.006,96038.0,96017.0,0.0814]
[1739936818986,0.0576,96037.0,96017.0,0.0814]
[1739936819193,3.449967,96036.0,96017.0,0.0814]
[1739936819397,3.592006,96042.0,96017.0,0.0814]
[1739936819612,3.586006,96041.0,96018.0,0.0096623]
[1739936820568,3.5864315,96041.0,96017.0,0.0814]
[1739936820931,3.586006,96040.0,96017.0,0.0814]
[1739936821132,0.006,96038.0,96017.0,0.0824]
[1739936821428,3.643606,96037.0,96017.0,0.0814]
[1739936821662,3.586006,96036.0,96017.0,0.0814]
[1739936821868,3.586006,96040.0,96017.0,0.0824]
[1739936822092,0.0079,96039.0,96017.0,0.0814]
[1739936822337,3.586006,96038.0,96017.0,0.0814]
[1739936822575,3.592006,96038.0,96017.0,0.0824]
[1739936822815,3.586006,96037.0,96017.0,0.0814]
[1739936823056,3.62080028,96037.0,96017.0,0.0824]
[1739936823255,3.643566,96036.0,96017.0,0.0824]
[1739936823375,3.586006,96035.0,96017.0,0.0824]
[1739936823609,3.234521,96036.0,96017.0,0.0824]
[1739936823890,3.333799,96037.0,96017.0,0.0824]
[1739936824047,3.586006,96037.0,96017.0,0.0824]
[1739936824246,3.586006,96037.0,96017.0,0.0814]
[1739936824478,3.502561,96038.0,96017.0,0.0824]
[1739936824718,3.586006,96037.0,96017.0,0.0824]
[1739936824897,3.586006,96037.0,96017.0,0.0814]
[1739936825096,0.006,96037.0,96017.0,0.0824]
[1739936825416,3.643526,96036.0,96017.0,0.0814]
[1739936825574,3.586006,96035.0,96017.0,0.0814]
[1739936825773,0.006,96038.0,96017.0,0.0824]
[1739936825974,3.643486,96037.0,96017.0,0.0814]
[1739936826180,3.586006,96037.0,96017.0,0.0814]
[1739936826557,2.977119,96037.0,96017.0,0.0814]
[1739936826837,2.570361,96037.0,96018.0,0.0496]
[1739936827028,2.590375,96037.0,96019.0,0.0759]
[1739936827241,0.006,96038.0,96020.0,0.08845]
[1739936827365,3.173805,96037.0,96020.0,0.08845]
[1739936827570,3.179805,96037.0,96020.0,0.08845]
[1739936827777,0.10700945,96043.0,96020.0,0.08845]
[1739936827778,3.187982,96036.0,96020.0,0.08845]
[1739936828171,0.10700945,96043.0,96020.0,0.08845]
[1739936828172,0.006,96037.0,96021.0,0.08374464]
[1739936828352,2.682077,96036.0,96022.0,0.07187946]
[1739936828549,2.682077,96036.0,96023.0,0.0759]
[1739936829130,3.312616,96040.0,96023.0,0.0759]
[1739936829332,0.006,96037.0,96023.0,0.0759]
[1739936829490,3.586006,96036.0,96023.0,0.0759]
[1739936829689,3.586006,96036.0,96024.0,0.0781]
[1739936830968,0.006,96036.0,96024.0,0.0781]
[1739936831173,3.586006,96035.0,96024.0,0.0781]
[1739936831569,3.586006,96040.0,96024.0,0.0791]
[1739936831799,0.006,96036.0,96024.0,0.0791]
[1739936832017,3.586006,96035.0,96024.0,0.0791]
[1739936832459,3.586006,96035.0,96024.0,0.0781]
[1739936832743,3.586006,96040.0,96024.0,0.0781]
[1739936832933,3.592006,96040.0,96024.0,0.0791]
[1739936833236,3.586006,96039.0,96024.0,0.0791]
[1739936834136,3.586006,96039.0,96021.0,0.08374464]
[1739936834137,3.398792,96039.0,96026.0,0.1258]
[1739936834295,0.10700945,96043.0,96026.0,0.1258]
[1739936834296,3.586006,96040.0,96027.0,0.0781]
[1739936834494,0.006,96035.0,96027.0,0.0781]
[1739936834701,3.389748,96034.0,96027.0,0.0781]
[1739936835105,2.405158,96034.0,96027.0,0.0781]
[1739936835332,2.573479,96034.0,96027.0,0.0781]
[1739936835489,2.528448,96033.0,96027.0,0.0791]
[1739936835690,2.458718,96034.0,96028.0,0.02105446]
[1739936835953,2.519315,96034.0,96029.0,0.0814]
[1739936836183,2.519315,96034.0,96030.0,0.0489]
[1739936836395,2.519315,96034.0,96031.0,0.0814]
[1739936837113,2.525315,96034.0,96031.0,0.0814]
[1739936837450,3.586006,96033.0,96031.0,0.0814]
[1739936837778,3.586006,96040.0,96031.0,0.0814]
[1739936837935,0.006,96034.0,96031.0,0.0824]
[1739936838140,3.432192,96033.0,96031.0,0.0824]
[1739936838366,3.374491,96032.0,96031.0,0.0824]
[1739936838563,3.456942,96033.0,96031.0,0.0814]
[1739936838766,3.374019,96033.0,96031.0,0.0814]
[1739936838980,2.979003,96040.0,96031.0,0.0824]
[1739936839182,3.18583,96039.0,96031.0,0.0824]